[Event "Titled Tuesday Blitz June 07 Early 2022"]
[White "Dounis, Alexandros"]
[Black "Zahedifar, Anahita"]
[WhiteFideId "4213238"]
[BlackFideId "12560715"]
[WhiteElo "2204"]
[BlackElo "1993"]
[Result "0-1"]
[Round "02"]
[TimeControl "180+1"]
[Date "2022.06.08"]
[WhiteClock "0:00:01"]
[BlackClock "0:00:08"]

1. Nf3 {[%clk 0:02:54]}  d5 {[%clk 0:02:58]} 2. g3 {[%clk 0:02:50]}  Nf6 {[%clk 0:02:58]} 3. Bg2 {[%clk 0:02:50]}  Bf5 {[%clk 0:02:57]} 4. O-O {[%clk 0:02:50]}  e6 {[%clk 0:02:57]} 5. b3 {[%clk 0:02:46]}  c5 {[%clk 0:02:56]} 6. Bb2 {[%clk 0:02:45]}  Be7 {[%clk 0:02:53]} 7. d4 {[%clk 0:02:44]}  Nc6 {[%clk 0:02:47]} 8. c4 {[%clk 0:02:45]}  dxc4 {[%clk 0:02:38]} 9. bxc4 {[%clk 0:02:42]}  O-O {[%clk 0:02:36]} 10. e3 {[%clk 0:02:23]}  Rc8 {[%clk 0:02:23]} 11. Nbd2 {[%clk 0:02:15]}  Nb4 {[%clk 0:02:12]} 12. Ne5 {[%clk 0:02:00]}  Qc7 {[%clk 0:02:05]} 13. e4 {[%clk 0:01:40]}  cxd4 {[%clk 0:01:46]} 14. Bxd4 {[%clk 0:01:29]}  Bg6 {[%clk 0:01:44]} 15. Nxg6 {[%clk 0:01:15]}  hxg6 {[%clk 0:01:44]} 16. Qb3 {[%clk 0:00:58]}  Nc6 {[%clk 0:01:39]} 17. Bc3 {[%clk 0:00:51]}  Bc5 {[%clk 0:01:30]} 18. Rac1 {[%clk 0:00:41]}  Rfd8 {[%clk 0:01:26]} 19. h3 {[%clk 0:00:37]}  Bd4 {[%clk 0:00:55]} 20. Rfd1 {[%clk 0:00:34]}  Bc5 {[%clk 0:00:41]} 21. e5 {[%clk 0:00:29]}  Nd7 {[%clk 0:00:39]} 22. Ne4 {[%clk 0:00:26]}  Ncxe5 {[%clk 0:00:34]} 23. Bxe5 {[%clk 0:00:22]}  Nxe5 {[%clk 0:00:32]} 24. Nxc5 {[%clk 0:00:20]}  Qxc5 {[%clk 0:00:32]} 25. Qxb7 {[%clk 0:00:18]}  Rb8 {[%clk 0:00:29]} 26. Rxd8+ {[%clk 0:00:17]}  Rxd8 {[%clk 0:00:28]} 27. Qb5 {[%clk 0:00:14]}  Qa3 {[%clk 0:00:20]} 28. Rb1 {[%clk 0:00:12]}  Nf3+ {[%clk 0:00:18]} 29. Bxf3 {[%clk 0:00:12]}  Qxf3 {[%clk 0:00:18]} 30. Qa5 {[%clk 0:00:10]}  Rd4 {[%clk 0:00:15]} 31. Qxa7 {[%clk 0:00:09]}  Rxc4 {[%clk 0:00:15]} 32. a4 {[%clk 0:00:02]}  Rc2 {[%clk 0:00:14]} 33. Qb8+ {[%clk 0:00:02]}  Kh7 {[%clk 0:00:14]} 34. Qb6 {[%clk 0:00:03]}  Ra2 {[%clk 0:00:13]} 35. a5 {[%clk 0:00:03]}  Qd3 {[%clk 0:00:12]} 36. Qb5 {[%clk 0:00:01]}  Qa3 {[%clk 0:00:13]} 37. a6 {[%clk 0:00:01]}  Qxa6 {[%clk 0:00:13]} 38. Qxa6 {[%clk 0:00:02]}  Rxa6 {[%clk 0:00:13]} 39. Kg2 {[%clk 0:00:03]}  Ra2 {[%clk 0:00:14]} 40. Rb8 {[%clk 0:00:03]}  g5 {[%clk 0:00:14]} 41. Rb5 {[%clk 0:00:03]}  Kg6 {[%clk 0:00:14]} 42. Rb4 {[%clk 0:00:04]}  f5 {[%clk 0:00:15]} 43. h4 {[%clk 0:00:04]}  gxh4 {[%clk 0:00:14]} 44. Rxh4 {[%clk 0:00:05]}  Kf6 {[%clk 0:00:14]} 45. Rb4 {[%clk 0:00:06]}  g5 {[%clk 0:00:15]} 46. Rb8 {[%clk 0:00:06]}  Ke5 {[%clk 0:00:15]} 47. Rb5+ {[%clk 0:00:06]}  Kf6 {[%clk 0:00:15]} 48. Rb6 {[%clk 0:00:07]}  f4 {[%clk 0:00:16]} 49. Rb4 {[%clk 0:00:06]}  e5 {[%clk 0:00:16]} 50. Rb6+ {[%clk 0:00:06]}  Kf5 {[%clk 0:00:16]} 51. Rb8 {[%clk 0:00:06]}  Kg4 {[%clk 0:00:15]} 52. Rb3 {[%clk 0:00:05]}  e4 {[%clk 0:00:14]} 53. gxf4 {[%clk 0:00:04]}  gxf4 {[%clk 0:00:14]} 54. Rb1 {[%clk 0:00:04]}  e3 {[%clk 0:00:14]} 55. Kg1 {[%clk 0:00:03]}  Rxf2 {[%clk 0:00:13]} 56. Rb8 {[%clk 0:00:03]}  Rc2 {[%clk 0:00:12]} 57. Rb1 {[%clk 0:00:03]}  f3 {[%clk 0:00:11]} 58. Kh1 {[%clk 0:00:03]}  e2 {[%clk 0:00:10]} 59. Rg1+ {[%clk 0:00:03]}  Kf4 {[%clk 0:00:09]} 60. Ra1 {[%clk 0:00:04]}  f2 {[%clk 0:00:10]} 61. Kh2 {[%clk 0:00:03]}  e1=Q {[%clk 0:00:09]} 62. Ra4+ {[%clk 0:00:02]}  Ke5 {[%clk 0:00:08]} 63. Rg4 {[%clk 0:00:02]}  f1=Q+ {[%clk 0:00:08]} 64. Rg2 {[%clk 0:00:01]}  Qxg2# {[%clk 0:00:08]} 0-1


[Site "https://www.chess.com"]

[Event "Titled Tuesday Blitz June 07 Early 2022"]
[White "Dubov, Daniil"]
[Black "Hua, Lefong"]
[WhiteFideId "24126055"]
[BlackFideId "2602253"]
[WhiteElo "2791"]
[BlackElo "2627"]
[Result "1-0"]
[Round "02"]
[TimeControl "180+1"]
[Date "2022.06.07"]
[WhiteClock "0:00:11"]
[BlackClock "0:00:05"]

1. c4 {[%clk 0:03:00]}  Nf6 {[%clk 0:02:59]} 2. Nc3 {[%clk 0:03:00]}  g6 {[%clk 0:03:00]} 3. e4 {[%clk 0:02:58]}  d6 {[%clk 0:03:00]} 4. d4 {[%clk 0:02:58]}  Bg7 {[%clk 0:03:00]} 5. f4 {[%clk 0:02:59]}  O-O {[%clk 0:03:01]} 6. Nf3 {[%clk 0:03:00]}  c5 {[%clk 0:03:01]} 7. d5 {[%clk 0:03:00]}  e6 {[%clk 0:03:01]} 8. dxe6 {[%clk 0:03:00]}  fxe6 {[%clk 0:03:00]} 9. g3 {[%clk 0:03:00]}  Nc6 {[%clk 0:02:58]} 10. Bg2 {[%clk 0:03:00]}  e5 {[%clk 0:02:54]} 11. fxe5 {[%clk 0:02:57]}  dxe5 {[%clk 0:02:53]} 12. Qxd8 {[%clk 0:02:54]}  Rxd8 {[%clk 0:02:51]} 13. Bg5 {[%clk 0:02:46]}  Bg4 {[%clk 0:02:47]} 14. Nd5 {[%clk 0:02:43]}  Bxf3 {[%clk 0:02:44]} 15. Bxf3 {[%clk 0:02:40]}  Rd6 {[%clk 0:02:30]} 16. O-O {[%clk 0:02:31]}  Nd4 {[%clk 0:02:25]} 17. Kg2 {[%clk 0:02:26]}  Rf8 {[%clk 0:02:18]} 18. Rf2 {[%clk 0:02:18]}  Ne6 {[%clk 0:02:03]} 19. Be3 {[%clk 0:02:15]}  Nd4 {[%clk 0:01:55]} 20. Raf1 {[%clk 0:02:11]}  h5 {[%clk 0:01:48]} 21. b4 {[%clk 0:01:38]}  Nxd5 {[%clk 0:01:39]} 22. exd5 {[%clk 0:01:33]}  cxb4 {[%clk 0:01:30]} 23. c5 {[%clk 0:01:31]}  Rdf6 {[%clk 0:01:27]} 24. Bxd4 {[%clk 0:01:22]}  exd4 {[%clk 0:01:26]} 25. d6 {[%clk 0:01:23]}  Rf5 {[%clk 0:00:52]} 26. d7 {[%clk 0:00:31]}  Rxc5 {[%clk 0:00:44]} 27. Bxb7 {[%clk 0:00:28]}  Rd8 {[%clk 0:00:39]} 28. Bc8 {[%clk 0:00:22]}  Rcxc8 {[%clk 0:00:31]} 29. dxc8=Q {[%clk 0:00:23]}  Rxc8 {[%clk 0:00:32]} 30. Kf3 {[%clk 0:00:19]}  Rc3+ {[%clk 0:00:23]} 31. Ke4 {[%clk 0:00:19]}  Re3+ {[%clk 0:00:22]} 32. Kd5 {[%clk 0:00:19]}  a5 {[%clk 0:00:22]} 33. Rf3 {[%clk 0:00:18]}  Re2 {[%clk 0:00:19]} 34. R1f2 {[%clk 0:00:18]}  Re1 {[%clk 0:00:17]} 35. Kc4 {[%clk 0:00:18]}  Rb1 {[%clk 0:00:13]} 36. Kb5 {[%clk 0:00:17]}  Ra1 {[%clk 0:00:08]} 37. Kxa5 {[%clk 0:00:16]}  Rb1 {[%clk 0:00:08]} 38. Rb3 {[%clk 0:00:14]}  Rxb3 {[%clk 0:00:05]} 39. axb3 {[%clk 0:00:15]}  Bf8 {[%clk 0:00:04]} 40. Kb5 {[%clk 0:00:15]}  Be7 {[%clk 0:00:03]} 41. Kc4 {[%clk 0:00:14]}  Bd6 {[%clk 0:00:03]} 42. Kxd4 {[%clk 0:00:13]}  Bc7 {[%clk 0:00:03]} 43. Kd5 {[%clk 0:00:13]}  Bd8 {[%clk 0:00:03]} 44. Kc4 {[%clk 0:00:10]}  Be7 {[%clk 0:00:03]} 45. Re2 {[%clk 0:00:11]}  Bf8 {[%clk 0:00:03]} 46. Re8 {[%clk 0:00:10]}  Kf7 {[%clk 0:00:04]} 47. Rxf8+ {[%clk 0:00:11]}  Kxf8 {[%clk 0:00:05]} 48. Kxb4 {[%clk 0:00:11]} 1-0


[Site "https://www.chess.com"]

[Event "Titled Tuesday Blitz June 07 Early 2022"]
[White "Fajdetic, Hrvoje"]
[Black "Jain, Naveen"]
[WhiteFideId "14501945"]
[BlackFideId "5003970"]
[WhiteElo "2172"]
[BlackElo "2036"]
[Result "0-1"]
[Round "02"]
[TimeControl "180+1"]
[Date "2022.06.08"]
[WhiteClock "0:00:13"]
[BlackClock "0:00:07"]

1. b3 {[%clk 0:02:51]}  Nf6 {[%clk 0:02:39]} 2. Bb2 {[%clk 0:02:51]}  g6 {[%clk 0:02:39]} 3. g3 {[%clk 0:02:50]}  Bg7 {[%clk 0:02:39]} 4. Bg2 {[%clk 0:02:50]}  O-O {[%clk 0:02:40]} 5. f4 {[%clk 0:02:49]}  d6 {[%clk 0:02:40]} 6. Nf3 {[%clk 0:02:49]}  Nc6 {[%clk 0:02:40]} 7. d3 {[%clk 0:02:49]}  e5 {[%clk 0:02:37]} 8. fxe5 {[%clk 0:02:45]}  Ng4 {[%clk 0:02:37]} 9. O-O {[%clk 0:02:37]}  Ne3 {[%clk 0:02:37]} 10. Qc1 {[%clk 0:02:34]}  Nxf1 {[%clk 0:02:36]} 11. Kxf1 {[%clk 0:02:31]}  Nxe5 {[%clk 0:02:37]} 12. e4 {[%clk 0:02:28]}  Nxf3 {[%clk 0:02:30]} 13. Bxf3 {[%clk 0:02:29]}  Bh3+ {[%clk 0:02:23]} 14. Bg2 {[%clk 0:02:25]}  Bxg2+ {[%clk 0:02:21]} 15. Kxg2 {[%clk 0:02:26]}  f5 {[%clk 0:02:22]} 16. Bxg7 {[%clk 0:02:24]}  Kxg7 {[%clk 0:02:21]} 17. Nc3 {[%clk 0:02:22]}  fxe4 {[%clk 0:01:54]} 18. Nxe4 {[%clk 0:02:23]}  d5 {[%clk 0:01:52]} 19. Qb2+ {[%clk 0:02:21]}  Kg8 {[%clk 0:01:50]} 20. Nd2 {[%clk 0:02:05]}  Qf6 {[%clk 0:01:46]} 21. Qxf6 {[%clk 0:02:01]}  Rxf6 {[%clk 0:01:47]} 22. Re1 {[%clk 0:02:01]}  Raf8 {[%clk 0:01:46]} 23. Re2 {[%clk 0:02:00]}  c6 {[%clk 0:01:46]} 24. a4 {[%clk 0:01:56]}  Kf7 {[%clk 0:01:46]} 25. a5 {[%clk 0:01:53]}  Re8 {[%clk 0:01:46]} 26. Rxe8 {[%clk 0:01:48]}  Kxe8 {[%clk 0:01:46]} 27. Nf3 {[%clk 0:01:45]}  Ke7 {[%clk 0:01:36]} 28. Kf2 {[%clk 0:01:45]}  Kd6 {[%clk 0:01:35]} 29. d4 {[%clk 0:01:40]}  c5 {[%clk 0:01:32]} 30. Ke3 {[%clk 0:01:36]}  Re6+ {[%clk 0:01:29]} 31. Kd3 {[%clk 0:01:34]}  h6 {[%clk 0:01:23]} 32. dxc5+ {[%clk 0:01:25]}  Kxc5 {[%clk 0:01:21]} 33. c3 {[%clk 0:01:25]}  b6 {[%clk 0:01:18]} 34. axb6 {[%clk 0:01:22]}  axb6 {[%clk 0:01:18]} 35. Nd4 {[%clk 0:01:16]}  Rf6 {[%clk 0:01:18]} 36. Ke2 {[%clk 0:01:13]}  b5 {[%clk 0:01:16]} 37. Nc2 {[%clk 0:01:11]}  Ra6 {[%clk 0:01:08]} 38. Kd3 {[%clk 0:01:05]}  Rf6 {[%clk 0:01:04]} 39. b4+ {[%clk 0:01:04]}  Kd6 {[%clk 0:01:00]} 40. Nd4 {[%clk 0:00:55]}  Rf1 {[%clk 0:01:00]} 41. Nxb5+ {[%clk 0:00:55]}  Ke5 {[%clk 0:00:54]} 42. Nd4 {[%clk 0:00:55]}  Rh1 {[%clk 0:00:54]} 43. h4 {[%clk 0:00:52]}  Rh3 {[%clk 0:00:48]} 44. Ne2 {[%clk 0:00:48]}  Rh1 {[%clk 0:00:43]} 45. Nf4 {[%clk 0:00:38]}  g5 {[%clk 0:00:40]} 46. hxg5 {[%clk 0:00:39]}  hxg5 {[%clk 0:00:40]} 47. Ne2 {[%clk 0:00:39]}  g4 {[%clk 0:00:39]} 48. Ke3 {[%clk 0:00:37]}  Rf1 {[%clk 0:00:34]} 49. Nd4 {[%clk 0:00:34]}  Re1+ {[%clk 0:00:32]} 50. Kd2 {[%clk 0:00:31]}  Rg1 {[%clk 0:00:30]} 51. Ne2 {[%clk 0:00:31]}  Ra1 {[%clk 0:00:25]} 52. Kd3 {[%clk 0:00:28]}  Ra2 {[%clk 0:00:20]} 53. Nf4 {[%clk 0:00:26]}  Rf2 {[%clk 0:00:16]} 54. Ne2 {[%clk 0:00:17]}  Rf3+ {[%clk 0:00:16]} 55. Kd2 {[%clk 0:00:17]}  Ke4 {[%clk 0:00:16]} 56. b5 {[%clk 0:00:17]}  Rf8 {[%clk 0:00:13]} 57. Nd4 {[%clk 0:00:12]}  Rb8 {[%clk 0:00:12]} 58. Ke2 {[%clk 0:00:12]}  Ra8 {[%clk 0:00:12]} 59. Kd2 {[%clk 0:00:11]}  Ra2+ {[%clk 0:00:12]} 60. Kc1 {[%clk 0:00:10]}  Kd3 {[%clk 0:00:11]} 61. b6 {[%clk 0:00:10]}  Ra6 {[%clk 0:00:09]} 62. b7 {[%clk 0:00:08]}  Rb6 {[%clk 0:00:09]} 63. Ne6 {[%clk 0:00:08]}  Kxc3 {[%clk 0:00:06]} 64. Nc5 {[%clk 0:00:08]}  Kc4 {[%clk 0:00:03]} 65. Na4 {[%clk 0:00:07]}  Rxb7 {[%clk 0:00:03]} 66. Nb2+ {[%clk 0:00:08]}  Rxb2 {[%clk 0:00:03]} 67. Kxb2 {[%clk 0:00:08]}  Kd3 {[%clk 0:00:04]} 68. Kc1 {[%clk 0:00:07]}  Ke2 {[%clk 0:00:04]} 69. Kc2 {[%clk 0:00:08]}  d4 {[%clk 0:00:05]} 70. Kb3 {[%clk 0:00:08]}  d3 {[%clk 0:00:06]} 71. Kc4 {[%clk 0:00:09]}  d2 {[%clk 0:00:07]} 72. Kd4 {[%clk 0:00:10]}  d1=Q+ {[%clk 0:00:07]} 73. Ke4 {[%clk 0:00:11]}  Qd3+ {[%clk 0:00:08]} 74. Kf4 {[%clk 0:00:12]}  Qf3+ {[%clk 0:00:08]} 75. Kg5 {[%clk 0:00:12]}  Qxg3 {[%clk 0:00:06]} 76. Kh5 {[%clk 0:00:12]}  Qf3 {[%clk 0:00:06]} 77. Kh4 {[%clk 0:00:12]}  g3 {[%clk 0:00:07]} 78. Kh3 {[%clk 0:00:13]}  g2+ {[%clk 0:00:07]} 79. Kh2 {[%clk 0:00:14]}  Qe3 {[%clk 0:00:05]} 80. Kxg2 {[%clk 0:00:13]}  Qg5+ {[%clk 0:00:05]} 81. Kh3 {[%clk 0:00:13]}  Kf2 {[%clk 0:00:06]} 82. Kh2 {[%clk 0:00:13]}  Qh4# {[%clk 0:00:07]} 0-1


[Site "https://www.chess.com"]

[Event "Titled Tuesday Blitz June 07 Early 2022"]
[White "Fecker, Noah"]
[Black "Chigaev, Maksim"]
[WhiteFideId "1334263"]
[BlackFideId "4108116"]
[WhiteElo "2312"]
[BlackElo "2457"]
[Result "0-1"]
[Round "02"]
[TimeControl "180+1"]
[Date "2022.06.07"]
[WhiteClock "0:00:12"]
[BlackClock "0:00:13"]

1. Nf3 {[%clk 0:03:00]}  Nf6 {[%clk 0:03:00]} 2. c4 {[%clk 0:03:00]}  g6 {[%clk 0:03:00]} 3. g3 {[%clk 0:03:00]}  Bg7 {[%clk 0:03:01]} 4. Bg2 {[%clk 0:03:00]}  O-O {[%clk 0:03:01]} 5. O-O {[%clk 0:03:01]}  c5 {[%clk 0:03:02]} 6. Nc3 {[%clk 0:03:00]}  Nc6 {[%clk 0:03:02]} 7. a3 {[%clk 0:02:59]}  d5 {[%clk 0:03:02]} 8. cxd5 {[%clk 0:03:00]}  Nxd5 {[%clk 0:03:02]} 9. Nxd5 {[%clk 0:03:00]}  Qxd5 {[%clk 0:03:03]} 10. d3 {[%clk 0:03:01]}  Qh5 {[%clk 0:03:01]} 11. Qc2 {[%clk 0:02:51]}  b6 {[%clk 0:02:58]} 12. Bd2 {[%clk 0:02:48]}  Bh3 {[%clk 0:02:50]} 13. Bc3 {[%clk 0:02:47]}  e5 {[%clk 0:02:29]} 14. Rac1 {[%clk 0:02:28]}  Rac8 {[%clk 0:02:27]} 15. Rfd1 {[%clk 0:02:25]}  Bxg2 {[%clk 0:02:16]} 16. Kxg2 {[%clk 0:02:25]}  Qg4 {[%clk 0:02:17]} 17. Qd2 {[%clk 0:02:21]}  Rfd8 {[%clk 0:02:13]} 18. h3 {[%clk 0:02:17]}  Qa4 {[%clk 0:02:11]} 19. Qe3 {[%clk 0:02:11]}  Nd4 {[%clk 0:02:06]} 20. Bxd4 {[%clk 0:02:07]}  exd4 {[%clk 0:02:05]} 21. Qf4 {[%clk 0:01:58]}  Re8 {[%clk 0:02:05]} 22. Re1 {[%clk 0:01:50]}  h6 {[%clk 0:02:02]} 23. h4 {[%clk 0:01:48]}  Qb3 {[%clk 0:01:58]} 24. Qd2 {[%clk 0:01:42]}  Qd5 {[%clk 0:01:45]} 25. b4 {[%clk 0:01:38]}  c4 {[%clk 0:01:33]} 26. dxc4 {[%clk 0:01:36]}  Rxc4 {[%clk 0:01:34]} 27. Rxc4 {[%clk 0:01:29]}  Qxc4 {[%clk 0:01:35]} 28. Qd3 {[%clk 0:01:27]}  b5 {[%clk 0:01:35]} 29. Kf1 {[%clk 0:01:22]}  a6 {[%clk 0:01:32]} 30. Rd1 {[%clk 0:01:21]}  Qd5 {[%clk 0:01:09]} 31. Rc1 {[%clk 0:01:13]}  Qe6 {[%clk 0:00:45]} 32. Rc2 {[%clk 0:01:06]}  Rd8 {[%clk 0:00:45]} 33. Kg2 {[%clk 0:01:04]}  Bf6 {[%clk 0:00:45]} 34. Rc5 {[%clk 0:01:02]}  Kg7 {[%clk 0:00:45]} 35. h5 {[%clk 0:01:01]}  g5 {[%clk 0:00:45]} 36. Nd2 {[%clk 0:00:58]}  Re8 {[%clk 0:00:44]} 37. Kf1 {[%clk 0:00:36]}  Qg4 {[%clk 0:00:34]} 38. Qf3 {[%clk 0:00:34]}  Qh3+ {[%clk 0:00:32]} 39. Kg1 {[%clk 0:00:35]}  Qe6 {[%clk 0:00:32]} 40. Rc6 {[%clk 0:00:31]}  Qe5 {[%clk 0:00:17]} 41. Rc5 {[%clk 0:00:28]}  Qxe2 {[%clk 0:00:14]} 42. Qxe2 {[%clk 0:00:13]}  Rxe2 {[%clk 0:00:15]} 43. Nb3 {[%clk 0:00:13]}  Ra2 {[%clk 0:00:11]} 44. Rc6 {[%clk 0:00:12]}  d3 {[%clk 0:00:10]} 45. Rd6 {[%clk 0:00:12]}  Rxa3 {[%clk 0:00:10]} 46. Rxd3 {[%clk 0:00:12]}  Be7 {[%clk 0:00:11]} 47. Nc5 {[%clk 0:00:12]}  Rxd3 {[%clk 0:00:10]} 48. Nxd3 {[%clk 0:00:12]}  Kf6 {[%clk 0:00:11]} 49. Kf1 {[%clk 0:00:12]}  Ke6 {[%clk 0:00:11]} 50. Ke2 {[%clk 0:00:13]}  Kd5 {[%clk 0:00:12]} 51. Kd2 {[%clk 0:00:13]}  Kd4 {[%clk 0:00:10]} 52. Kc2 {[%clk 0:00:13]}  f5 {[%clk 0:00:11]} 53. f3 {[%clk 0:00:12]}  Bd6 {[%clk 0:00:11]} 54. g4 {[%clk 0:00:11]}  fxg4 {[%clk 0:00:11]} 55. fxg4 {[%clk 0:00:12]}  Ke4 {[%clk 0:00:12]} 56. Kc3 {[%clk 0:00:12]}  Kf3 {[%clk 0:00:12]} 57. Kd4 {[%clk 0:00:12]}  Kxg4 {[%clk 0:00:13]} 0-1


[Site "https://www.chess.com"]

[Event "Titled Tuesday Blitz June 07 Early 2022"]
[White "Grischuk, Alexander"]
[Black "Saveliev, Alexei"]
[WhiteFideId "4126025"]
[BlackFideId "24128546"]
[WhiteElo "2762"]
[BlackElo "2281"]
[Result "1-0"]
[Round "02"]
[TimeControl "180+1"]
[Date "2022.06.07"]
[WhiteClock "0:00:10"]
[BlackClock "0:00:01"]

1. d4 {[%clk 0:03:00]}  g6 {[%clk 0:03:00]} 2. e4 {[%clk 0:03:00]}  Bg7 {[%clk 0:03:00]} 3. Nf3 {[%clk 0:03:01]}  d6 {[%clk 0:03:01]} 4. Bd3 {[%clk 0:03:01]}  Nc6 {[%clk 0:03:01]} 5. O-O {[%clk 0:03:00]}  Bg4 {[%clk 0:02:59]} 6. c3 {[%clk 0:02:56]}  Nf6 {[%clk 0:02:58]} 7. Nbd2 {[%clk 0:02:55]}  O-O {[%clk 0:02:58]} 8. h3 {[%clk 0:02:55]}  Bd7 {[%clk 0:02:56]} 9. Nc4 {[%clk 0:02:31]}  Ne8 {[%clk 0:02:36]} 10. Re1 {[%clk 0:02:23]}  e5 {[%clk 0:02:36]} 11. Bg5 {[%clk 0:02:23]}  f6 {[%clk 0:02:34]} 12. Be3 {[%clk 0:02:23]}  Kh8 {[%clk 0:02:32]} 13. a4 {[%clk 0:02:18]}  a5 {[%clk 0:02:25]} 14. Qd2 {[%clk 0:02:09]}  Ne7 {[%clk 0:02:23]} 15. Qc2 {[%clk 0:02:00]}  Be6 {[%clk 0:02:21]} 16. b4 {[%clk 0:01:53]}  axb4 {[%clk 0:02:10]} 17. cxb4 {[%clk 0:01:54]}  d5 {[%clk 0:02:07]} 18. exd5 {[%clk 0:01:45]}  Nxd5 {[%clk 0:02:08]} 19. Bd2 {[%clk 0:01:45]}  Nd6 {[%clk 0:01:58]} 20. dxe5 {[%clk 0:01:45]}  Nxc4 {[%clk 0:01:55]} 21. Bxc4 {[%clk 0:01:46]}  fxe5 {[%clk 0:01:52]} 22. Nxe5 {[%clk 0:01:22]}  Qh4 {[%clk 0:01:46]} 23. Re2 {[%clk 0:00:28]}  Rxf2 {[%clk 0:01:13]} 24. Rxf2 {[%clk 0:00:25]}  Bxe5 {[%clk 0:01:14]} 25. Bxd5 {[%clk 0:00:22]}  Bxd5 {[%clk 0:00:34]} 26. Bc3 {[%clk 0:00:21]}  Qg3 {[%clk 0:00:35]} 27. Bxe5+ {[%clk 0:00:20]}  Qxe5 {[%clk 0:00:36]} 28. Raf1 {[%clk 0:00:19]}  Kg7 {[%clk 0:00:30]} 29. a5 {[%clk 0:00:18]}  Re8 {[%clk 0:00:26]} 30. Qc5 {[%clk 0:00:16]}  c6 {[%clk 0:00:22]} 31. Rd2 {[%clk 0:00:13]}  Qe4 {[%clk 0:00:14]} 32. Qd4+ {[%clk 0:00:13]}  Qxd4+ {[%clk 0:00:14]} 33. Rxd4 {[%clk 0:00:14]}  Re2 {[%clk 0:00:14]} 34. Rf2 {[%clk 0:00:14]}  Re1+ {[%clk 0:00:15]} 35. Kh2 {[%clk 0:00:15]}  Rb1 {[%clk 0:00:15]} 36. h4 {[%clk 0:00:12]}  h5 {[%clk 0:00:16]} 37. Kg3 {[%clk 0:00:12]}  Rb3+ {[%clk 0:00:15]} 38. Kh2 {[%clk 0:00:10]}  Rb1 {[%clk 0:00:15]} 39. Rdf4 {[%clk 0:00:10]}  Rc1 {[%clk 0:00:12]} 40. Re2 {[%clk 0:00:10]}  Kh6 {[%clk 0:00:10]} 41. Rd4 {[%clk 0:00:08]}  Rf1 {[%clk 0:00:08]} 42. Re7 {[%clk 0:00:08]}  Rf2 {[%clk 0:00:06]} 43. Rxd5 {[%clk 0:00:08]}  cxd5 {[%clk 0:00:07]} 44. Rxb7 {[%clk 0:00:09]}  d4 {[%clk 0:00:05]} 45. Rd7 {[%clk 0:00:08]}  Rd2 {[%clk 0:00:05]} 46. a6 {[%clk 0:00:08]}  Ra2 {[%clk 0:00:03]} 47. b5 {[%clk 0:00:08]}  Ra5 {[%clk 0:00:03]} 48. Rxd4 {[%clk 0:00:08]}  Rxb5 {[%clk 0:00:03]} 49. Ra4 {[%clk 0:00:08]}  Rb8 {[%clk 0:00:04]} 50. a7 {[%clk 0:00:08]}  Ra8 {[%clk 0:00:05]} 51. Kg3 {[%clk 0:00:09]}  Kg7 {[%clk 0:00:05]} 52. Kf4 {[%clk 0:00:09]}  Rf8+ {[%clk 0:00:02]} 53. Ke4 {[%clk 0:00:09]}  Ra8 {[%clk 0:00:02]} 54. Kd5 {[%clk 0:00:09]}  Kf6 {[%clk 0:00:03]} 55. Kc6 {[%clk 0:00:09]}  g5 {[%clk 0:00:04]} 56. g3 {[%clk 0:00:08]}  gxh4 {[%clk 0:00:03]} 57. gxh4 {[%clk 0:00:09]}  Kf5 {[%clk 0:00:04]} 58. Kb7 {[%clk 0:00:09]}  Rg8 {[%clk 0:00:04]} 59. a8=Q {[%clk 0:00:09]}  Rxa8 {[%clk 0:00:01]} 60. Kxa8 {[%clk 0:00:10]} 1-0


[Site "https://www.chess.com"]